Cogmind - Beta 10.2 @@@ ROGUE MODE // 2020.12.27 @ 16:44:03 Player: SureStep Result: Self-destructed Performance ------------- Evolutions (1) 500 Regions Visited (2) 400 Robots Destroyed (17) 85 Value Destroyed (318) 318 Prototype IDs (6) 120 Alien Tech Used (0) 0 Bonus (0) 0 TOTAL SCORE: 1423 Bonus ------- None Cogmind --------- Core Integrity 285/400 Matter 264/300 Energy 265/265 System Corruption 0% Temperature Cool (144) Movement Hovering (120) Ox1 Location -9/Materials Parts ------- > --- POWER (2) -------- Improved Ion Engine > --- PROPULSION (3) --- Hover Unit > --- UTILITY (2) ------ Improved Sensor Array Armor Integrity Analyzer > --- WEAPON (2) ------- Light Assault Rifle > --- INVENTORY (4) ---- Flight Unit Heat Sink Targeting Computer Peak State ------------ > --- POWER ------------ Light Ion Engine Improved Ion Engine > --- PROPULSION ------- Hover Unit Hover Unit Hover Unit > --- UTILITY ---------- Improved Sensor Array Armor Integrity Analyzer > --- WEAPON ----------- Medium Laser Beam Rifle > --- INVENTORY -------- Hover Unit Flight Unit Heat Sink [Rating: 13] Favorites ----------- Power Light Ion Engine Engine Light Ion Engine Propulsion Hover Unit Wheel Wheel Hover Unit Hover Unit Utility Improved Sensor Array Device Improved Sensor Array Storage Small Storage Unit Processor Armor Integrity Analyzer Protection Core Shielding Weapon Medium Laser Energy Gun Medium Laser Ballistic Gun Light Assault Rifle Launcher Grenade Launcher Build | -11 -10 -9 ------- Run | Scr Mat Mat Slots Evolved 2 | . . 2 Power 1 | . . 1 Propulsion 1 | . . 1 Utility . | . . . Weapon . | . . . Parts Attached 26 | 5 16 5 Power 4 | 1 1 2 Engine 4 | 1 1 2 Core . | . . . Reactor . | . . . Propulsion 6 | 2 3 1 Treads . | . . . Leg . | . . . Wheel 2 | 2 . . Hover 4 | . 3 1 Flight . | . . . Utility 8 | 1 7 . Device 3 | . 3 . Storage 1 | 1 . . Processor 3 | . 3 . Hackware . | . . . Protection 1 | . 1 . Artifact . | . . . Weapon 8 | 1 5 2 Energy Gun 6 | 1 4 1 Energy Cannon . | . . . Ballistic Gun 1 | . . 1 Ballistic Cannon . | . . . Launcher 1 | . 1 . Special Weapon . | . . . Impact Weapon . | . . . Slashing Weapon . | . . . Piercing Weapon . | . . . Special Melee Weapon . | . . . Unidentified Prototypes . | . . . Parts Lost 7 | . 1 6 Power 1 | . . 1 Propulsion 2 | . . 2 Utility . | . . . Weapon 4 | . 1 3 Highest Loss Streak 5 | . 1 5 Average Slot Usage (%) 96 | . 97 92 Engine 15 | . 14 20 Wheel 8 | . 10 . Hover 19 | . 17 30 Device 10 | . 10 11 Storage 2 | . 3 . Processor 10 | . 10 11 Protection 2 | . 3 . Energy Gun 21 | . 21 17 Launcher 3 | . 4 . Naked Turns . | . . . Heaviest Build 16 | 9 13 16 Greatest Support 20 | 20 20 18 Greatest Overweight (x) 1 | . 1 1 Average Overweight (x) . | . . . Largest Inventory Capacity 6 | 6 6 4 Average Capacity 4 | 5 4 4 Most Carried 4 | 4 4 4 Average Carried 2 | . 3 2 Final Capacity 6 | 6 4 4 Final Carried 4 | . 4 3 Class Distribution -------------------- 100% | Mutant Dominant Class ---------------- Mutant | -10/Materials Mutant | -9/Materials Resources | -11 -10 -9 ----------- Run | Scr Mat Mat Matter Collected 528 | 233 182 113 Remotely . | . . . Salvage Created 534 | . 375 159 Parts 31 | . 19 12 Haulers Intercepted 2 | . 2 . Recyclers Shooed 2 | . 1 1 Parts Field Recycled . | . . . Retrieved Matter . | . . . Parts Self-Destructed . | . . . Prevented . | . . . Kills | -11 -10 -9 ------- Run | Scr Mat Mat Combat Hostiles Destroyed 9 | . 4 5 Guns 7 | . 2 5 AOE 2 | . 2 . Classes Destroyed 8 | . 6 2 Worker 2 | . 2 . Builder 1 | . 1 . Hauler 2 | . 2 . Recycler 1 | . 1 . Watcher 2 | . 2 . Swarmer 3 | . . 3 Grunt 4 | . 4 . Sentry 2 | . . 2 Best Kill Streak 3 | . 3 3 Combat Bots Only 3 | . 2 3 Max Kills in Single Turn 1 | . 1 1 Gunslinging . | . . . Exploded 1 | . 1 . Melee . | . . . Uniques/NPCs Destroyed . | . . . Combat | -11 -10 -9 -------- Run | Scr Mat Mat Damage Taken 708 | . 234 474 Core 160 | . 45 115 Absorbed by Shields . | . . . Core Remaining (%) 91 | 100 82 . Volleys Fired 90 | . 62 28 Largest 2 | . 2 2 Hottest 106 | . 100 106 Shots Fired 117 | . 77 40 Gun 114 | . 74 40 Cannon . | . . . Launcher 3 | . 3 . Special . | . . . Kinetic 3 | . . 3 Thermal 111 | . 74 37 Explosive 3 | . 3 . Electromagnetic . | . . . Robot Hit Streak 7 | . 7 6 Robot Miss Streak 6 | . 4 6 Penetration Max . | . . . Secondary Targets . | . . . Shots Hit Robots 66 | . 44 22 Core Hits 31 | . 23 8 Critical Hits . | . . . Critical Kills . | . . . Critical Parts Destroyed . | . . . Melee Attacks . | . . . Impact . | . . . Slashing . | . . . Piercing . | . . . Sneak Attacks . | . . . Combat Hostiles . | . . . Follow-up Attacks . | . . . Damage Inflicted 1014 | . 719 295 Guns 778 | . 483 295 Cannons . | . . . Explosions 236 | . 236 . Melee . | . . . Ramming . | . . . Kinetic 8 | . . 8 Thermal 770 | . 483 287 Explosive 236 | . 236 . Electromagnetic . | . . . Impact . | . . . Slashing . | . . . Piercing . | . . . Highest Corruption . | . . . Average Corruption . | . . . Corruption Purged . | . . . Overload Shots . | . . . Overflow Damage . | . . . Projectiles . | . . . Explosions . | . . . Melee . | . . . Knockbacks . | . . . Impact . | . . . Kinetic . | . . . Secondary . | . . . Self-Inflicted Damage . | . . . Shots . | . . . Rammed . | . . . Targets Rammed . | . . . Kicked . | . . . Crushed . | . . . Highest Temperature 530 | . 271 530 Average Temperature 122 | . 68 213 Received Heat Transfer 258 | . 132 126 Effects 14 | . . 14 Shutdowns 6 | . . 6 Energy Bleed 2 | . . 2 Interference 3 | . . 3 Matter Decay 2 | . . 2 Damage (minor) 1 | . . 1 Siege Activations . | . . . Robots Corrupted . | . . . Combat Hostiles . | . . . Parts Fried . | . . . Impact Corruptions . | . . . Robots Melted . | . . . Combat Hostiles . | . . . Parts Melted 6 | . 2 4 Heat Transferred 2257 | . 1443 814 Parts Sabotaged . | . . . Parts Stolen . | . . . Parts Stripped . | . . . Power Chain Reactions . | . . . Missiles Intercepted . | . . . Alert | -11 -10 -9 ------- Run | Scr Mat Mat Peak Influence 179 | . 179 114 Initial 4 | . . 4 Average 54 | . 60 41 Maximum Alert Level . | . . . Low Security (%) 100 | 100 100 100 Level 1 . | . . . Level 2 . | . . . Level 3 . | . . . Level 4 . | . . . Level 5 . | . . . High Security . | . . . Max Security . | . . . Squads Dispatched 3 | . 1 2 Investigation 3 | . 1 2 Extermination . | . . . Reinforcement . | . . . Assault . | . . . Garrison . | . . . Intercept . | . . . Construction Impeded . | . . . Haulers Reinforced . | . . . Stealth | -11 -10 -9 --------- Run | Scr Mat Mat Distress Signals 1 | . . 1 Communications Jammed . | . . . Distress Signals . | . . . Times Spotted 23 | . 14 9 Peak Tracking Total 4 | . 3 4 Tactical Retreats 4 | . 3 1 Traps | -11 -10 -9 ------- Run | Scr Mat Mat Traps Triggered 1 | . . 1 Indirectly . | . . . Trap Hack Attempts . | . . . Triggered . | . . . Disarmed . | . . . Reprogrammed . | . . . Reused . | . . . Traps Extracted . | . . . Installed . | . . . Triggered . | . . . Machines | -11 -10 -9 ---------- Run | Scr Mat Mat Machines Disabled 1 | . 1 . Max in Single Turn 1 | . 1 . Machines Sabotaged . | . . . Garrisons Compromised . | . . . Overloaded Fab Kills . | . . . Fab Network Shutdowns . | . . . Hacking | -11 -10 -9 --------- Run | Scr Mat Mat Machines Accessed 9 | . 8 1 Terminals 7 | . 7 . Fabricators . | . . . Repair Stations 1 | . 1 . Recycling Units . | . . . Scanalyzers 1 | . . 1 Garrison Access . | . . . Total Hacks 25 | . 22 3 Successful 17 | . 14 3 Failed 8 | . 8 . Catastrophic 2 | . 2 . Database Lockouts . | . . . Manual . | . . . Terminals 18 | . 18 . Fabricators . | . . . Repair Stations 4 | . 4 . Recycling Units . | . . . Scanalyzers 3 | . . 3 Garrison Access . | . . . Terminal Hacks 10 | . 10 . Prototype ID Bank 4 | . 4 . Emergency Access Points 1 | . 1 . Alert Level 1 | . 1 . Locate Traps 2 | . 2 . Hauler Manifests 1 | . 1 . Registered Components 1 | . 1 . Fabricator Hacks . | . . . Repair Station Hacks 4 | . 4 . Scan Component 2 | . 2 . Repair 2 | . 2 . Recycling Unit Hacks . | . . . Scanalyzer 3 | . . 3 Insert Component 2 | . . 2 Analyze 1 | . . 1 Garrison Access Hacks . | . . . Unauthorized Hacks . | . . . Terminals . | . . . Fabricators . | . . . Repair Stations . | . . . Recycling Units . | . . . Scanalyzers . | . . . Garrison Access . | . . . Data Cores Recovered . | . . . Used . | . . . Hacking Detections 7 | . 6 1 Full Trace Events 4 | . 3 1 Feedback Events . | . . . Feedback Blocked . | . . . Robot Schematics Acquired . | . . . Robots Built . | . . . Matter . | . . . Time . | . . . Total Robot Build Rating . | . . . Part Schematics Acquired 1 | . . 1 Parts Built . | . . . Matter . | . . . Time . | . . . Total Part Build Rating . | . . . Parts Repaired 2 | . 2 . Time 52 | . 52 . Parts Recycled . | . . . Recycled Matter . | . . . Retrieved Matter . | . . . Retrieved Components . | . . . Parts Scanalyzed 1 | . . 1 Part Schematics Acquired 1 | . . 1 Parts Damaged . | . . . Bothacking | -11 -10 -9 ------------ Run | Scr Mat Mat Used RIF Installer . | . . . Robots Hacked . | . . . Non-combat . | . . . Combat . | . . . Robot Hacks Applied . | . . . Relay Couplers Released . | . . . Robots Rewired . | . . . Allies Hacked . | . . . Hacks Repelled . | . . . Allies | -11 -10 -9 -------- Run | Scr Mat Mat Total Allies . | . . . Largest Group . | . . . Highest-Rated Group . | . . . Highest-Rated Ally . | . . . Total Orders . | . . . Ally Attacks . | . . . Total Damage . | . . . Kills . | . . . Allies Corrupted . | . . . Allies Melted . | . . . Intel | -11 -10 -9 ------- Run | Scr Mat Mat Robot Analysis Total . | . . . Derelict Logs Recovered . | . . . Drone Launches . | . . . Drone Recoveries . | . . . Exploration | -11 -10 -9 ------------- Run | Scr Mat Mat Turns Passed 1281 | 43 991 247 Spaces Moved 1134 | 44 923 167 Core 10 | 8 2 . Treads . | . . . Legs . | . . . Wheels 345 | 36 309 . Hover 779 | . 612 167 Flight . | . . . Fastest Speed 50 | 50 56 52 Average Speed 62 | 74 64 52 Slowest Speed 120 | 80 100 120 Overloaded Moves . | . . . Propulsion Burnouts . | . . . Robots Hopped . | . . . Cave-ins Triggered . | . . . Exploration Rate (%) 36 | 3 98 9 Regions Visited 2 Branch Regions . Pre-discovered Areas . | . . . Known Exits Taken . | . . . Unknown Exits Taken 2 | 1 1 . Scrap Searched . | . . . Spaces Dug . | . . . Terrain Destroyed 11 | . 11 . Melee . | . . . Projectile . | . . . AOE 11 | . 11 . Terrain Rammed . | . . . Walls Destroyed . | . . . Machines Disabled . | . . . Actions | -11 -10 -9 --------- Run | Scr Mat Mat Total 1596 | 53 1256 287 Wait 283 | . 204 79 Move 1132 | 43 922 167 Hop . | . . . Pick Up 38 | 5 28 5 Fast Attach . | . . . Attach 26 | 5 16 5 Detach 8 | . 7 1 Swap . | . . . Drop 19 | . 17 2 Fire 90 | . 62 28 Melee . | . . . Ram . | . . . Kick . | . . . Crush . | . . . Escape Stasis . | . . . Rewire . | . . . Trap . | . . . Miscellaneous . | . . . Route ------- -11/Scrapyard -10/Materials (discovered 5 exits: *Mat x3 / [*Min x2]) -9/Materials History --------- Turn | Location | Event 24 | -11/Scrapyard | Discovered new exit (range 12) 44 | -11/Scrapyard | Entered Materials 225 | -10/Materials | Discovered new exit (range 10) 323 | -10/Materials | Build established: Mutant 452 | -10/Materials | Discovered new exit (range 11) 561 | -10/Materials | Discovered new exit (range 8) 716 | -10/Materials | Repaired Med. Laser 746 | -10/Materials | Repaired Hover Unit 871 | -10/Materials | Discovered new exit (range 12) 945 | -10/Materials | Discovered new exit (range 11) 1035 | -10/Materials | Entered another Materials area 1035 | -9/Materials | Evolved 2 slots: Power x1, Propulsion x1 1282 | -9/Materials | Self-destructed Last Messages --------------- Med. Laser destroyed. K-01 Serf collects debris. S-10 Pest destroyed. K-01 Serf collects debris. Lgt. Ion Engine destroyed. K-01 Serf collects debris. Hover Unit destroyed. S-10 Pest destroyed. K-01 Serf collects debris. Hover Unit destroyed. S-10 Pest destroyed. Overheating: Energy bleed (-26). K-01 Serf collects debris. R-06 Scavenger collects Lgt. Ion Engine. K-01 Serf collects debris. Beam Rifle destroyed. K-01 Serf collects debris. Dropped Hover Unit. Acquired Lgt. Assault Rifle. K-01 Serf collects debris. Map ----- +----------------------------------------------------+ | ?????????????????????????????????????????????????? | | ?????????????????????????????????????????????????? | | ?????????????????????????????????????????????????? | | ?????????????????????????????????????????????????? | | ?????????????????????????????????????????????????? | | ?????????????????????????????????????????????????? | | ?????????????????????????????????????????????????? | | ?????????????????????????????????????????????????? | | ?????????????????????????????????????????????????? | | ?????????????????????????????????????????????????? | | ?????????????????????????????????????????????????? | | ?????????????????????????????????????????????????? | | ?????????????????????????????????????????????????? | | ?????????????????????????????????????????????????? | | ?????????????????????????????????????????????????? | | ?????????????????????????????????????????????????? | | ?????????????????????????????????????????????????? | | ?????????????????????????????????????????????????? | | ???????????????????????????????##########????????? | | ?????????????????#?????????????# ! #????????? | | ?????????????????# ????????????# #????????? | | ?????????????????# ??##+##????# """ #????????? | | ????????????????## ## #?#### """"" #????????? | | ????????????????# a # # """"" #????????? | | ????????????????# # # # """"" #????????? | | ??????????????????????# =@/ # """ #????????? | | ??????????????????????#[=%#k # #????????? | | ??????????????????????#[g=# # #????????? | | ?????????????????????## gg##########+####????????? | | ?????????????????????# ####### #?????????? | | ?????????????????????# #?????????? | | ?????????????????????# #?????????? | | ?????????????????????# #?????????? | | ?????????????????????# ####### #?????????? | | ?????????????????????#######?????## ##?????????? | | ??????????????????????????????????# #??????????? | | ??????????????????????????????????# #??????????? | | ?????????????????????????########## #??????????? | | ?????????????????????????# # #??????????? | | ?????????????????????????# "" # #??????????? | | ?????????????# ##### ""S # ############ | | ?????????? / "" # * ! # | | ?????????????????# ##### =+ = # | | ?????????????????????????# # # | | ?????????????????????????# = ################ | | ?????????????????????????# == #??????????????? | | ?????????????????????????# #??????????????? | | ?????????????????????????####### ##??????????????? | | ???????????????????????????????###???????????????? | | ?????????????????????????????????????????????????? | +----------------------------------------------------+ Best States ------------- Heat Dissipation 28 Energy Generation 17 Energy Capacity 290 Matter Stores 300 Matter Capacity 300 Sight Range 16 Robot Scan Range 13 Terrain Scan Range 14 Terrain Scan Density 85 Core Shielding 20 Evasion (%) 54 Targeting Accuracy 5 Armor Integrity Analysis 33 Item Schematics ----------------- Flight Unit | -9/Materials | Scanalyzed Robot Schematics ------------------ None Fabricated ------------ Nothing Alien Tech Used ----------------- None Achievements -------------- None Challenges ------------ None Game ------ Seed GrenadeOmegaBay Manual? 0 Play Time 00:26:29 Cumulative 25.5 hours Start 2020.12.27 @ 16:14:32 End 2020.12.27 @ 16:44:03 Sessions 1 Manual Loads 0 Difficulty Rogue Special Mode None Game No. 33 Rogue 33 Adventurer 0 Explorer 0 Win Type - Total 0 Types 0/0/0/0/0/0/0/0/0 Lore% 10 Gallery% 16 Achievement% 15 Wizard Run 0 Options --------- ASCII 0 Keyboard 0 Movement Mouse Keybinds 0 Fullscreen 1 Font 18/SmallcapsGlow Map View 76x50 Tactical HUD 0 Map Filters NONE Filters NONE Steam 1 RUN: 4575168d-e802-483d-826f-872e2cf2d681